bitfinex/quotes_BTCUSD_20220120
["timestamp","ask_amount","ask_price","bid_price","bid_amount"]
[1642701986978,0.03010153,43009.0,43007.0,0.02]
[1642701987375,0.03010153,43009.0,43006.0,0.4473301]
[1642701987873,0.03,43009.0,43006.0,0.4473301]
[1642701988075,0.08825053,43009.0,43006.0,0.4473301]
[1642701988273,0.14639981,43009.0,43006.0,0.4473301]
[1642701988475,0.19639981,43009.0,43006.0,0.4473301]
[1642701989274,0.19639981,43009.0,43006.0,0.23]
[1642701989483,0.11631477,43008.0,43006.0,0.23]
[1642701989676,0.00010153,43008.0,43006.0,0.23]
[1642701989876,0.19639981,43009.0,43006.0,0.23]
[1642701990078,0.00010153,43008.0,43006.0,0.23]
[1642701990276,0.1394426,43009.0,43006.0,0.23]
[1642701990478,0.00010153,43008.0,43006.0,0.23]
[1642701990730,0.0812936,43009.0,43006.0,0.23]
[1642701990929,0.00010153,43008.0,43006.0,0.23]
[1642701991129,0.0812936,43009.0,43007.0,0.20159058]
[1642701991331,0.00010153,43008.0,43007.0,0.20159058]
[1642701991531,0.08010153,43009.0,43007.0,0.20159058]
[1642701992132,0.03010153,43009.0,43007.0,0.20159058]
[1642701993130,0.03010153,43009.0,43007.0,0.4263773]
[1642701993531,0.03010153,43009.0,43007.0,0.20159058]
[1642701993933,0.03010153,43009.0,43007.0,0.19659058]
[1642701994495,0.03010153,43009.0,43006.0,0.23]
[1642701994700,0.08825553,43009.0,43006.0,0.23]
[1642701995195,0.25662334,43008.0,43006.0,0.23]
[1642701995395,0.00010153,43008.0,43006.0,0.23]
[1642701995595,0.058156,43006.0,43003.0,0.19230532]
[1642701996196,0.078156,43006.0,43003.0,0.19230532]
[1642701997096,0.28877704,43005.0,43000.0,0.00129721]
[1642701997303,0.30290896,43004.0,42994.0,0.009305]
[1642701997500,0.30290896,43004.0,43001.0,0.00010315]
[1642701997501,0.116318,43003.0,43001.0,0.00010315]
[1642701997700,0.116318,43003.0,42994.0,0.009305]
[1642701997701,1.15,43001.0,42994.0,0.009305]
[1642701997900,0.046,43000.0,42995.0,0.00010314]
[1642701998241,0.046,43000.0,42986.0,0.20564168]
[1642701998242,0.05817246,42995.0,42992.0,0.21167186]
[1642701998435,0.16234346,42995.0,42992.0,0.21167186]
[1642701998635,0.20949619,42994.0,42992.0,0.21167186]
[1642701999534,0.816357,42993.0,42992.0,0.21167186]
[1642701999936,0.55,42992.0,42990.0,0.23279824]
[1642702000138,0.60817739,42992.0,42990.0,0.23279824]
[1642702000335,0.25193308,42991.0,42990.0,0.23279824]
[1642702000736,0.25193308,42991.0,42990.0,0.23288419]
[1642702001137,0.25193308,42991.0,42990.0,8.595e-05]
[1642702001138,0.35193308,42991.0,42990.0,8.595e-05]
[1642702001336,0.35193308,42991.0,42979.0,0.94037628]
[1642702001337,0.9,42990.0,42979.0,0.00127628]
[1642702001537,0.9,42990.0,42972.0,0.00080547]
[1642702001540,0.116362,42986.0,42972.0,0.00080547]
[1642702001737,0.116362,42986.0,42980.0,0.0001719]
[1642702001984,0.058181,42984.0,42974.0,0.00156574]
[1642702002186,0.00119239,42982.0,42981.0,0.18794567]
[1642702002589,0.00119239,42982.0,42981.0,0.18810038]
[1642702002886,0.00119239,42982.0,42981.0,1.03810038]
[1642702003086,0.216341,42991.0,42985.0,0.3210655]
[1642702003286,0.116341,42991.0,42985.0,0.3210655]
[1642702003486,0.116341,42991.0,42989.0,0.05984412]
[1642702003784,0.116341,42991.0,42986.0,6.876e-05]
[1642702004184,0.31617528,42991.0,42986.0,6.876e-05]
[1642702004986,0.43253262,42991.0,42986.0,0.17750126]
[1642702005289,0.42453262,42991.0,42986.0,0.17750126]
[1642702006028,0.05817828,42990.0,42986.0,0.17750126]
[1642702006429,0.05817828,42990.0,42982.0,0.00013752]
[1642702006631,0.116362,42989.0,42982.0,0.00013752]
[1642702006930,0.26752079,42988.0,42982.0,0.00013752]
[1642702007129,0.31752079,42988.0,42982.0,0.00013752]
[1642702007935,0.26752079,42988.0,42982.0,0.22168215]
[1642702008132,0.33570379,42988.0,42982.0,0.00013752]
[1642702008333,0.3963181,42987.0,42983.0,0.00012033]
[1642702008531,0.3963181,42987.0,42978.0,0.01012426]
[1642702008532,0.058188,42985.0,42979.0,0.00018909]
[1642702008732,0.31604551,42984.0,42979.0,0.00018909]
[1642702009130,0.31604551,42984.0,42981.0,0.17776806]
[1642702009330,0.43361486,42984.0,42981.0,0.17776806]
[1642702009582,0.43361486,42984.0,42982.0,0.00013752]
[1642702009782,0.74935059,42983.0,42982.0,0.00013752]
[1642702010179,0.74935059,42983.0,42979.0,0.00018909]
[1642702010180,0.80753781,42983.0,42979.0,0.00018909]
[1642702010380,0.05819,42981.0,42979.0,0.00018909]
[1642702010591,0.88307752,42980.0,42979.0,0.00018909]
[1642702010881,0.98727752,42980.0,42979.0,0.00018909]
[1642702011083,0.058199,42978.0,42973.0,0.18534736]
[1642702011284,0.046,42977.0,42973.0,0.18534736]
[1642702011481,0.046,42977.0,42974.0,8.595e-05]
[1642702011683,0.046,42977.0,42974.0,0.00015795]
[1642702011880,0.104197,42977.0,42974.0,8.595e-05]
[1642702012079,0.104197,42977.0,42975.0,6.876e-05]
[1642702012080,0.112197,42977.0,42975.0,6.876e-05]
[1642702012280,0.054,42977.0,42975.0,6.876e-05]
[1642702013525,0.046,42977.0,42975.0,6.876e-05]
[1642702014126,0.07,42977.0,42975.0,6.876e-05]
[1642702014929,1.09656502,42976.0,42975.0,6.876e-05]
[1642702015527,1.09781445,42976.0,42975.0,6.876e-05]
[1642702015729,0.86575076,42976.0,42975.0,0.11806876]
[1642702015927,0.26575076,42976.0,42975.0,0.11806876]
[1642702016125,0.33795076,42976.0,42975.0,0.11806876]
[1642702016528,0.01524943,42976.0,42975.0,0.11806876]
[1642702016727,0.014,42976.0,42975.0,0.11806876]
[1642702017981,0.116398,42978.0,42975.0,0.11806876]
[1642702017982,0.058199,42978.0,42975.0,0.11806876]
[1642702018180,0.018,42976.0,42975.0,0.11806876]
[1642702018483,0.018,42976.0,42975.0,0.19287688]
[1642702019378,0.058199,42978.0,42975.0,0.19287688]
[1642702020181,0.088199,42978.0,42975.0,0.19287688]
[1642702020379,0.34000196,42978.0,42975.0,0.19287688]
[1642702020582,0.088199,42978.0,42975.0,0.19287688]
[1642702021028,0.08029231,42978.0,42975.0,0.19287688]
[1642702021427,0.05029231,42978.0,42975.0,0.19287688]
[1642702021828,0.24777967,42977.0,42975.0,0.19287688]
[1642702022027,0.24777967,42977.0,42975.0,0.11806876]
[1642702022228,0.35597663,42977.0,42975.0,0.11806876]
[1642702022428,0.87659938,42976.0,42975.0,0.11806876]
[1642702022830,0.27659938,42976.0,42975.0,0.11806876]
[1642702023027,0.16639396,42977.0,42975.0,0.11806876]
[1642702023428,0.69840684,42976.0,42975.0,0.11806876]
[1642702024027,0.24840684,42976.0,42975.0,0.11806876]
[1642702024228,0.26940684,42976.0,42975.0,0.11806876]
[1642702024681,0.61940684,42976.0,42975.0,0.11806876]
[1642702024882,0.62064873,42976.0,42975.0,0.11806876]
[1642702025083,0.67885273,42976.0,42973.0,0.00080872]
[1642702025482,0.30785273,42976.0,42973.0,0.00080872]
[1642702026083,0.30785273,42976.0,42972.0,7.2e-05]
[1642702026286,0.32785273,42976.0,42972.0,0.00080875]
[1642702026482,0.32785273,42976.0,42972.0,0.00088075]
[1642702027285,0.32785273,42976.0,42972.0,7.2e-05]
[1642702027486,0.32785273,42976.0,42972.0,0.00080877]
[1642702027487,0.19883629,42974.0,42972.0,0.00080877]
[1642702027685,1.196,42973.0,42972.0,0.00088077]
[1642702027883,1.196,42973.0,42965.0,0.00323555]
[1642702027884,1.226,42971.0,42966.0,7.2e-05]
[1642702028087,1.226,42971.0,42965.0,0.00323555]
[1642702028088,0.058214,42966.0,42965.0,0.00323555]
[1642702028336,0.104214,42966.0,42965.0,0.00323555]
[1642702028536,0.104214,42966.0,42964.0,7.2e-05]
[1642702028843,0.104214,42966.0,42963.0,0.19188248]
[1642702028844,0.046,42966.0,42963.0,0.19188248]
[1642702029234,0.046,42966.0,42964.0,0.00018909]
[1642702030236,0.056,42966.0,42964.0,0.00018909]
[1642702032086,0.058212,42968.0,42964.0,0.00018909]
[1642702032287,0.019,42966.0,42964.0,0.24917809]
[1642702032485,0.019,42966.0,42964.0,0.00018909]
[1642702032685,0.019,42966.0,42965.0,0.3501719]
[1642702032884,0.019,42966.0,42965.0,0.0001719]
[1642702033485,0.058212,42968.0,42965.0,0.0001719]
[1642702033686,0.058212,42968.0,42964.0,0.25162101]
[1642702034286,0.078212,42968.0,42963.0,0.19085675]
[1642702034486,0.078212,42968.0,42963.0,0.19005438]
[1642702034685,0.078212,42968.0,42964.0,0.00090259]
[1642702035725,0.078212,42968.0,42963.0,0.19005438]
[1642702035925,0.078212,42968.0,42964.0,0.00090259]
[1642702036132,0.058212,42968.0,42964.0,0.00090259]
[1642702036327,0.066212,42968.0,42964.0,0.00090259]
[1642702036927,0.066212,42968.0,42963.0,0.16505438]
[1642702037129,0.066212,42968.0,42964.0,0.00090259]
[1642702037528,0.01,42965.0,42964.0,0.00090259]
[1642702038130,0.01,42965.0,42962.0,0.0044]
[1642702038330,0.028,42965.0,42962.0,0.00530264]
[1642702039029,0.028,42965.0,42963.0,0.18662848]
[1642702039485,0.01,42965.0,42963.0,0.18662848]
[1642702039685,0.01,42965.0,42962.0,0.0044]
[1642702040284,0.015,42965.0,42961.0,0.00330307]
[1642702040488,0.073211,42965.0,42961.0,0.00241275]
[1642702040692,0.073211,42965.0,42961.0,0.00330307]
[1642702041288,0.32466212,42964.0,42961.0,0.00330307]
[1642702041490,0.24174003,42963.0,42961.0,0.00330307]
[1642702041686,0.24174003,42963.0,42961.0,0.00241275]
[1642702041890,0.05821581,42963.0,42961.0,0.00330309]
[1642702042088,0.068211,42965.0,42961.0,0.00330309]
[1642702042291,0.013,42963.0,42961.0,0.00330309]
[1642702042788,0.013,42963.0,42961.0,0.00241275]
[1642702043436,0.068211,42965.0,42961.0,0.00241275]
[1642702044234,0.115211,42965.0,42962.0,0.24525969]
[1642702044634,0.115211,42965.0,42963.0,0.22213369]
[1642702044837,0.057,42965.0,42963.0,0.22213369]
[1642702045537,0.01,42965.0,42963.0,0.22213369]
[1642702045736,0.01,42965.0,42963.0,0.23144569]
[1642702046136,0.01,42965.0,42963.0,0.009312]
[1642702046335,0.01,42965.0,42963.0,0.070312]
[1642702046336,0.012,42965.0,42963.0,0.070312]
[1642702047583,0.01,42965.0,42963.0,0.009312]
[1642702047983,0.358212,42964.0,42963.0,0.009312]
[1642702048184,0.058212,42964.0,42963.0,0.009312]
[1642702048583,0.028,42965.0,42963.0,0.009312]
[1642702048784,0.2476124,42964.0,42963.0,0.009312]
[1642702049988,0.06821144,42965.0,42963.0,0.009312]
[1642702050189,0.24439744,42964.0,42963.0,0.009312]
[1642702050388,0.25739744,42964.0,42963.0,0.009312]
[1642702050588,0.013,42964.0,42963.0,0.009312]
[1642702051037,0.26290673,42964.0,42963.0,0.009312]
[1642702051442,0.26290673,42964.0,42962.0,7.2e-05]
[1642702051443,0.24990673,42964.0,42962.0,7.2e-05]
[1642702051639,0.24990673,42964.0,42961.0,0.00330429]
[1642702051935,0.06821144,42965.0,42961.0,0.00330429]
[1642702052335,0.011,42964.0,42961.0,0.00330429]
[1642702052535,0.011,42964.0,42961.0,0.00241275]
[1642702052739,0.011,42964.0,42961.0,0.00330431]
[1642702053539,0.01,42965.0,42961.0,0.00337631]
[1642702053737,0.01,42965.0,42961.0,0.00248475]
[1642702054338,0.048,42965.0,42961.0,0.00348475]
[1642702054800,0.048,42965.0,42961.0,0.01279775]
[1642702054996,0.048,42965.0,42961.0,0.0136173]
[1642702055593,0.01,42965.0,42961.0,0.0033043]
[1642702055995,0.01,42965.0,42961.0,0.00241275]
[1642702056195,0.01,42965.0,42961.0,0.0033043]
[1642702056394,0.046,42965.0,42961.0,0.0033043]
[1642702056597,1.91759842,42962.0,42961.0,0.0033043]
[1642702056796,0.058216,42963.0,42957.0,7.2e-05]
[1642702056997,0.05821,42961.0,42956.0,0.001172]
[1642702057197,0.05821,42961.0,42957.0,7.2e-05]
[1642702057398,0.05821,42961.0,42957.0,0.00013752]
[1642702057594,0.05821,42961.0,42957.0,0.00020952]
[1642702057994,0.058213,42960.0,42958.0,0.00012033]
[1642702058228,0.11642816,42960.0,42958.0,0.00019233]
[1642702058427,0.11642816,42960.0,42958.0,0.00012033]
[1642702058625,0.11642816,42960.0,42959.0,0.00010314]
[1642702058828,0.11642816,42960.0,42958.0,0.00019233]
[1642702059025,0.11642816,42960.0,42958.0,0.00012033]
[1642702059225,0.058213,42960.0,42959.0,0.00010314]
[1642702059425,0.058213,42960.0,42958.0,0.00019233]
[1642702059626,0.058213,42960.0,42958.0,0.00012033]
[1642702060325,0.014,42960.0,42958.0,0.00012033]
[1642702061978,0.072214,42960.0,42958.0,0.00012033]
[1642702062179,0.058214,42960.0,42958.0,0.00012033]
[1642702062384,0.066214,42960.0,42958.0,0.01812033]
[1642702062783,0.008,42960.0,42959.0,0.50010314]
[1642702063584,0.05821,42961.0,42959.0,0.50010314]
[1642702063986,0.05821,42961.0,42960.0,8.595e-05]
[1642702064484,0.08121,42961.0,42960.0,8.595e-05]
[1642702065087,0.08121,42961.0,42960.0,0.65008595]
[1642702065384,0.08121,42961.0,42960.0,8.595e-05]
[1642702065583,0.05821,42961.0,42960.0,8.595e-05]
[1642702066432,0.06521,42961.0,42960.0,0.04008595]
[1642702067234,0.06521,42961.0,42960.0,0.49008595]
[1642702067835,0.06521,42961.0,42960.0,0.04008595]
[1642702071684,0.05821,42961.0,42960.0,8.595e-05]
[1642702072284,0.07821,42961.0,42959.0,0.00017514]
[1642702072485,0.07821,42961.0,42960.0,8.595e-05]
[1642702072888,0.07821,42961.0,42959.0,0.00017514]
[1642702073231,0.13766763,42961.0,42960.0,8.595e-05]
[1642702073636,0.11766763,42961.0,42959.0,0.00017514]
[1642702073833,2.74694471,42961.0,42959.0,0.00010314]
[1642702074033,2.74570197,42961.0,42960.0,8.595e-05]
[1642702074233,0.11642489,42961.0,42959.0,0.00010314]
[1642702074431,0.13142489,42961.0,42959.0,0.00010314]
[1642702075635,0.11642489,42961.0,42959.0,0.00010314]
[1642702076435,0.13042489,42961.0,42959.0,0.00010314]
[1642702077083,0.13042489,42961.0,42959.0,0.00017514]
[1642702077485,0.13042489,42961.0,42960.0,8.595e-05]
[1642702077684,0.11642489,42961.0,42960.0,0.00015795]
[1642702077990,0.11642489,42961.0,42960.0,8.595e-05]
[1642702078384,0.12842489,42961.0,42959.0,0.00017514]
[1642702078585,0.12842489,42961.0,42958.0,0.00079524]
[1642702078586,0.37928533,42961.0,42960.0,8.595e-05]
[1642702078985,0.37928533,42961.0,42959.0,0.00010314]
[1642702079184,0.24806682,42960.0,42959.0,7.2e-05]
[1642702079383,0.24806682,42960.0,42958.0,0.00079524]
[1642702079584,0.05822,42959.0,42958.0,0.00079524]
[1642702079784,0.11642489,42961.0,42958.0,0.00079524]
[1642702079984,0.11642489,42961.0,42957.0,7.2e-05]
[1642702080186,0.11642489,42961.0,42956.0,0.00196728]
[1642702080384,0.12442489,42961.0,42958.0,0.011]
[1642702081035,0.25283157,42960.0,42958.0,0.011]
[1642702081735,0.11642489,42961.0,42958.0,7.2e-05]
[1642702081935,0.11642489,42961.0,42957.0,0.00086725]
[1642702082135,0.11642489,42961.0,42956.0,0.0011]
[1642702082334,0.12742489,42961.0,42956.0,0.0011]
[1642702082835,0.12742489,42961.0,42957.0,0.00079527]
[1642702083035,0.35742489,42961.0,42957.0,0.00079527]
[1642702083635,0.34642489,42961.0,42957.0,0.00079527]
[1642702083837,0.34642489,42961.0,42956.0,0.0011]
[1642702084482,0.36142489,42961.0,42956.0,0.0011]
[1642702084882,0.00127242,42957.0,42956.0,0.0011]
[1642702085082,1.24471242,42957.0,42956.0,0.0011]
[1642702085280,0.44471242,42957.0,42952.0,0.0044]
[1642702085482,0.50294242,42957.0,42952.0,0.0044]
[1642702085784,0.1164561,42956.0,42952.0,0.0044]
[1642702085984,0.10422799,42955.0,42952.0,0.0044]
[1642702086380,0.10422799,42955.0,42952.0,0.05297018]
[1642702087781,0.046,42955.0,42952.0,0.05297018]
[1642702087985,0.046,42955.0,42953.0,0.2221917]
[1642702088232,0.36681363,42960.0,42953.0,0.2221917]
[1642702088233,0.00119256,42960.0,42953.0,0.2221917]
[1642702088441,0.019,42955.0,42953.0,0.2221917]
[1642702088835,0.019,42955.0,42954.0,1.179112]
[1642702089432,0.00126133,42960.0,42955.0,0.9]
[1642702089633,6.876e-05,42960.0,42959.0,0.31754967]
[1642702089833,0.00126134,42960.0,42959.0,0.31754967]
[1642702090433,0.00426134,42960.0,42959.0,0.35554967]
[1642702090941,0.23,42961.0,42960.0,1.1]
[1642702091334,0.23,42961.0,42960.0,1.479112]
[1642702091994,0.23,42961.0,42960.0,1.69924748]
[1642702092397,0.23,42961.0,42960.0,1.71924748]
[1642702093694,0.23,42961.0,42960.0,1.74530366]
[1642702094295,0.18739088,42961.0,42960.0,1.74530366]
[1642702094495,0.18739088,42961.0,42960.0,1.77330366]
[1642702095734,0.18739088,42961.0,42960.0,1.74530366]
[1642702096139,0.04260912,42961.0,42960.0,1.74530366]
[1642702097336,0.04198896,42961.0,42960.0,1.74530366]
[1642702097934,0.04198896,42961.0,42960.0,1.69924748]
[1642702098639,0.04198896,42961.0,42960.0,1.479112]
[1642702098838,0.04198896,42961.0,42960.0,1.1]
[1642702099037,0.04198896,42961.0,42959.0,0.47211318]
[1642702100388,0.04198896,42961.0,42955.0,7.2e-05]
[1642702100585,0.30650067,42960.0,42954.0,7.2e-05]
[1642702100784,0.30650067,42960.0,42953.0,0.05031225]
[1642702100985,0.30650067,42960.0,42955.0,8.595e-05]
[1642702101783,0.3076933,42960.0,42955.0,8.595e-05]
[1642702101985,0.05940563,42960.0,42957.0,0.21755461]
[1642702102284,0.11762228,42960.0,42957.0,0.21755461]
[1642702102884,0.11642965,42960.0,42957.0,0.21755461]
[1642702103084,0.11642965,42960.0,42955.0,7.2e-05]
[1642702103336,0.11642965,42960.0,42954.0,0.00010314]
[1642702103541,0.11642965,42960.0,42956.0,6.876e-05]
[1642702103937,0.24848125,42959.0,42956.0,6.876e-05]
[1642702104138,0.24848125,42959.0,42954.0,0.00017514]
[1642702104337,0.24848125,42959.0,42954.0,0.00010314]
[1642702104538,0.17584128,42960.0,42954.0,0.00017514]
[1642702104737,0.17584128,42960.0,42954.0,0.00010314]
[1642702104937,0.11762228,42960.0,42954.0,0.00017514]
[1642702105139,0.11762228,42960.0,42954.0,0.00010314]
[1642702105339,0.11762228,42960.0,42959.0,0.55234016]
[1642702105340,0.058213,42960.0,42959.0,0.55234016]
[1642702105639,0.00119262,42960.0,42954.0,0.00010314]
[1642702105839,0.00119262,42960.0,42955.0,7.2e-05]
[1642702105840,0.05940162,42960.0,42955.0,7.2e-05]
[1642702106039,0.05940162,42960.0,42954.0,0.00017514]
[1642702106241,0.05940162,42960.0,42952.0,0.00035762]
[1642702106441,8.595e-05,42959.0,42952.0,0.00035762]
[1642702106641,8.595e-05,42959.0,42957.0,0.3355699]
[1642702106844,6.876e-05,42958.0,42957.0,0.3355699]
[1642702107687,6.876e-05,42958.0,42957.0,1.2355699]
[1642702107887,6.876e-05,42958.0,42957.0,1.6146819]
[1642702108891,6.876e-05,42958.0,42957.0,1.61596757]
[1642702110091,6.876e-05,42958.0,42957.0,0.33685557]
[1642702110733,6.876e-05,42958.0,42957.0,0.78685557]
[1642702111738,6.876e-05,42958.0,42957.0,1.28685557]
[1642702113138,6.876e-05,42958.0,42957.0,0.78685557]
[1642702113639,6.876e-05,42958.0,42957.0,1.18685557]
[1642702113839,6.876e-05,42958.0,42957.0,1.4195267]
[1642702114042,6.876e-05,42958.0,42957.0,1.7986387]
[1642702122318,6.876e-05,42958.0,42957.0,1.7987387]
[1642702123515,6.876e-05,42958.0,42957.0,1.3987387]
[1642702123715,6.876e-05,42958.0,42957.0,1.16606757]
[1642702123917,6.876e-05,42958.0,42957.0,0.33695557]
[1642702124116,6.876e-05,42958.0,42957.0,0.3356699]
[1642702124316,6.876e-05,42958.0,42957.0,0.0001]
[1642702126743,0.01006876,42958.0,42957.0,0.0001]
[1642702134840,0.01006876,42958.0,42955.0,0.17841506]
[1642702138491,0.01006876,42958.0,42956.0,0.04537064]
[1642702138690,0.01006876,42958.0,42955.0,0.17841506]
[1642702139894,0.058214,42957.0,42953.0,0.29516087]
[1642702140495,0.001337,42958.0,42953.0,0.29516087]
[1642702140742,0.001337,42958.0,42954.0,6.876e-05]
[1642702141539,0.00252965,42958.0,42954.0,6.876e-05]
[1642702142540,0.001337,42958.0,42954.0,6.876e-05]
[1642702142741,0.00252965,42958.0,42954.0,6.876e-05]
[1642702143744,0.001337,42958.0,42954.0,6.876e-05]
[1642702143944,0.00252965,42958.0,42954.0,6.876e-05]
[1642702144800,0.001337,42958.0,42954.0,6.876e-05]
[1642702145000,0.00252965,42958.0,42954.0,6.876e-05]
[1642702145399,0.04198896,42961.0,42955.0,0.6]
[1642702146200,0.10019896,42961.0,42955.0,0.6]
[1642702146702,0.01,42956.0,42955.0,0.6]
[1642702149142,0.01,42956.0,42954.0,6.876e-05]
[1642702159794,0.01,42956.0,42955.0,1.479112]
[1642702160594,0.01,42956.0,42955.0,0.379112]
[1642702161195,0.01,42956.0,42955.0,1.129112]
[1642702162595,0.01,42956.0,42955.0,0.379112]
[1642702162895,0.01,42956.0,42954.0,6.876e-05]
[1642702165253,0.01,42956.0,42955.0,1.479112]
[1642702169711,0.01,42956.0,42955.0,1.490742]
[1642702170948,0.01,42956.0,42955.0,1.890742]
[1642702171153,0.01,42956.0,42955.0,1.900056]
[1642702171348,0.01,42956.0,42955.0,1.890742]
[1642702171754,0.00119259,42960.0,42956.0,1.15]
[1642702171954,0.00119259,42960.0,42957.0,0.59785274]
[1642702172553,0.04198896,42961.0,42957.0,0.59785274]
[1642702172753,0.04318158,42961.0,42957.0,0.59785274]
[1642702172953,0.04318158,42961.0,42960.0,1.2829183]
[1642702173155,0.04318158,42961.0,42960.0,1.51644604]
[1642702173753,0.03698896,42961.0,42960.0,1.51644604]
[1642702174596,0.0011926,42963.0,42961.0,1.1]
[1642702174896,0.058198,42967.0,42962.0,1.525112]
[1642702175096,0.058198,42967.0,42966.0,0.25382541]
[1642702176000,0.42,42968.0,42966.0,0.25382541]
[1642702176199,0.42,42968.0,42966.0,0.29982541]
[1642702176397,0.42,42968.0,42967.0,0.00128984]
[1642702176597,0.42,42968.0,42967.0,1.14728984]
[1642702176799,0.4201719,42968.0,42967.0,1.14728984]
[1642702177001,0.4201719,42968.0,42967.0,1.52640184]
[1642702177398,0.4201719,42968.0,42967.0,1.76829645]
[1642702178548,0.4201719,42968.0,42967.0,1.38918445]
[1642702178748,0.6501719,42968.0,42967.0,1.38918445]
[1642702180749,0.6301719,42968.0,42967.0,1.38918445]
[1642702181548,0.6301719,42968.0,42967.0,0.28789461]
[1642702182603,0.89149314,42968.0,42966.0,0.06]
[1642702182799,0.89149314,42968.0,42954.0,0.00085444]
[1642702182800,0.6301719,42968.0,42954.0,0.00085444]
[1642702182999,0.26147595,42967.0,42954.0,0.00085444]
[1642702183299,0.00013752,42966.0,42954.0,0.00085444]
[1642702183499,0.00119259,42963.0,42956.0,0.34362108]
[1642702183699,0.00119259,42963.0,42957.0,0.18066436]
[1642702183899,6.876e-05,42962.0,42957.0,0.18066436]
[1642702184302,6.876e-05,42962.0,42956.0,0.34362108]
[1642702184804,0.00112894,42962.0,42956.0,0.33862108]
[1642702185201,0.058215,42961.0,42954.0,0.00095268]
[1642702185402,0.27641665,42960.0,42954.0,0.00095268]
[1642702185602,0.24346924,42960.0,42954.0,0.00095268]
[1642702185858,0.24452943,42960.0,42954.0,0.0009527]
[1642702186260,0.00106019,42960.0,42954.0,0.21690122]
[1642702186863,0.058215,42961.0,42954.0,0.21601728]
[1642702186864,0.01,42955.0,42954.0,0.21601728]
[1642702187061,0.01,42955.0,42954.0,1.21690123]
[1642702187062,0.00937,42955.0,42954.0,1.21690123]
[1642702187262,0.00874,42955.0,42954.0,1.21690123]
[1642702187465,0.00874,42955.0,42954.0,0.21690123]
[1642702187862,0.00874,42955.0,42954.0,0.81690123]
[1642702188062,0.00874,42955.0,42954.0,0.59512928]
[1642702188762,0.00874,42955.0,42954.0,0.21601728]
[1642702189600,0.23874,42955.0,42954.0,0.21601728]
[1642702190005,0.23874,42955.0,42954.0,0.25018614]
[1642702190200,0.23874,42955.0,42954.0,0.21601728]
[1642702192305,0.22874,42955.0,42954.0,0.66601728]
[1642702192704,0.22874,42955.0,42954.0,1.04512928]
[1642702193105,0.22874,42955.0,42954.0,1.09512928]
[1642702194151,0.23874,42955.0,42954.0,1.09512928]
[1642702196152,0.23874,42955.0,42954.0,0.64512928]
[1642702196751,0.23874,42955.0,42954.0,1.39512928]
[1642702197208,0.23874,42955.0,42954.0,1.39520128]
[1642702197409,0.18359994,42955.0,42954.0,1.74520128]
[1642702197615,0.05514006,42955.0,42954.0,1.74520128]
[1642702198609,0.04514006,42955.0,42954.0,1.75451528]
[1642702198810,0.04514006,42955.0,42954.0,1.74520128]
[1642702199011,0.04514006,42955.0,42954.0,1.75200728]
[1642702199411,0.04514006,42955.0,42954.0,1.74520128]
[1642702200217,0.04514006,42955.0,42954.0,1.79120128]
[1642702200411,0.04514006,42955.0,42954.0,1.85283128]
[1642702200611,0.04514006,42955.0,42954.0,1.95574371]
[1642702200859,0.04514006,42955.0,42954.0,1.90574371]
[1642702201660,0.04514006,42955.0,42954.0,1.95574371]
[1642702202263,0.00107339,42960.0,42955.0,0.04514]
[1642702202465,6.876e-05,42962.0,42959.0,0.00121331]
[1642702202662,6.876e-05,42962.0,42961.0,1.11163]
[1642702202867,6.876e-05,42962.0,42961.0,1.586742]
[1642702203061,6.876e-05,42962.0,42961.0,1.636742]
[1642702203262,6.876e-05,42962.0,42961.0,2.04415638]
[1642702203863,6.876e-05,42962.0,42961.0,1.99415638]
[1642702204064,0.01006876,42962.0,42961.0,1.99415638]
[1642702205702,0.0010734,42964.0,42962.0,1.1]
[1642702205905,0.4,42968.0,42964.0,1.1]
[1642702205906,0.330821,42968.0,42964.0,1.1]
[1642702206103,0.330821,42968.0,42967.0,0.00125153]
[1642702206303,0.330821,42968.0,42967.0,1.48036353]
[1642702206502,0.330821,42968.0,42967.0,1.53036353]
[1642702206706,0.330821,42968.0,42967.0,1.76164645]
[1642702207103,0.330821,42968.0,42967.0,1.99943799]
[1642702207303,0.330821,42968.0,42967.0,1.94943799]
[1642702207504,0.330821,42968.0,42967.0,1.93780799]
[1642702207705,0.330821,42968.0,42967.0,1.99943799]
[1642702208751,0.25210436,42968.0,42967.0,1.99943799]
[1642702211054,0.13593032,42968.0,42967.0,1.99943799]
[1642702211857,0.36593032,42968.0,42967.0,1.99943799]
[1642702212507,0.36593032,42968.0,42967.0,0.67327645]
[1642702212707,0.36593032,42968.0,42967.0,0.79327645]
[1642702213212,0.36593032,42968.0,42967.0,1.04069839]
[1642702213407,0.36593032,42968.0,42967.0,1.04167888]
[1642702213610,0.36593032,42968.0,42967.0,0.79327645]
[1642702214206,0.36593032,42968.0,42967.0,0.60799353]
[1642702216274,0.36593032,42968.0,42967.0,0.12]
[1642702223541,0.00010123,42966.0,42958.0,0.00088255]
[1642702224138,0.05829995,42967.0,42957.0,8.595e-05]
[1642702224139,0.058212,42964.0,42957.0,8.595e-05]
[1642702224337,0.23748785,42963.0,42958.0,0.00088261]
[1642702224741,0.00128864,42962.0,42958.0,0.00088261]
[1642702225337,0.00128864,42962.0,42957.0,8.595e-05]
[1642702225538,0.00128864,42962.0,42958.0,0.00088264]
[1642702226143,0.39141323,42964.0,42958.0,0.00088264]
[1642702226539,0.068209,42959.0,42954.0,0.15708887]
[1642702226740,0.068209,42959.0,42958.0,0.45088264]
[1642702227187,0.068209,42959.0,42958.0,0.4509514]
[1642702227587,0.068209,42959.0,42958.0,0.45006876]
[1642702228390,0.068209,42959.0,42958.0,6.876e-05]
[1642702228793,0.068209,42959.0,42957.0,8.595e-05]
[1642702229189,0.068209,42959.0,42956.0,0.00088268]
[1642702229389,0.068209,42959.0,42957.0,8.595e-05]
[1642702230389,0.068209,42959.0,42956.0,0.0008827]
[1642702230589,0.068209,42959.0,42957.0,8.595e-05]
[1642702231643,0.068209,42959.0,42956.0,0.0008827]
[1642702231845,0.79563425,42958.0,42957.0,8.595e-05]
[1642702232242,0.55,42958.0,42957.0,8.595e-05]
[1642702232445,0.79833528,42958.0,42957.0,8.595e-05]
[1642702232643,0.55,42958.0,42957.0,8.595e-05]
[1642702232843,0.298209,42959.0,42955.0,0.00088271]
[1642702233044,0.058221,42958.0,42956.0,0.00010314]
[1642702234046,0.058221,42958.0,42955.0,0.00088273]
[1642702234243,0.058221,42958.0,42956.0,0.00010314]
[1642702234499,0.23839052,42957.0,42956.0,0.00010314]
[1642702234899,0.298209,42959.0,42956.0,0.00010314]
[1642702235298,0.298209,42959.0,42955.0,0.00088273]